Cogmind - Beta 10.2 @@@ ROGUE MODE // 2021.03.16 @ 13:10:45 Player: Robbedoes Result: Self-destructed Performance ------------- Evolutions (2) 1000 Regions Visited (5) 1000 Robots Destroyed (18) 90 Value Destroyed (297) 297 Prototype IDs (2) 40 Alien Tech Used (0) 0 Bonus (60) 60 TOTAL SCORE: 2487 Bonus ------- Follower Combat Kills 60 Cogmind --------- Core Integrity 406/550 Matter 300/300 Energy 4/100 System Corruption 0% Temperature Cool (0) Movement Walking (130) Location -8/Materials Parts ------- > --- POWER (2) -------- (None) > --- PROPULSION (4) --- Improved Titanium Leg Improved Titanium Leg Improved Flight Unit > --- UTILITY (3) ------ Small Storage Unit Weight Redist. System > --- WEAPON (2) ------- Chainsword > --- INVENTORY (6) ---- Light Ion Engine Improved VTOL Module Visual Processing Unit ECM Suite Peak State ------------ > --- POWER ------------ Light Ion Engine Light Deuterium Engine > --- PROPULSION ------- Improved Titanium Leg Flight Unit Flight Unit Improved Flight Unit > --- UTILITY ---------- Small Storage Unit Weight Redist. System Long-range Terrain Scanner > --- WEAPON ----------- Light Assault Rifle Chainsword > --- INVENTORY -------- Light Ion Engine Improved Titanium Leg Improved Titanium Leg Small Storage Unit ECM Suite Rocket Launcher [Rating: 26] Favorites ----------- Power Light Ion Engine Engine Light Ion Engine Propulsion Flight Unit Leg Aluminum Leg Flight Unit Flight Unit Utility Small Storage Unit Device ECM Suite Storage Small Storage Unit Weapon Light Assault Rifle Energy Gun EM Pulse Gun Ballistic Gun Light Assault Rifle Launcher Shock Bomb Launcher Slashing Weapon Chainsword Build | -11 -10 -10 -9 -9 -8 ------- Run | Scr Mat Min Mat Min Mat Slots Evolved 4 | . . . 2 . 2 Power 1 | . . . 1 . . Propulsion 2 | . . . 1 . 1 Utility 1 | . . . . . 1 Weapon . | . . . . . . Parts Attached 28 | 1 2 8 2 3 12 Power 2 | . . . 1 . 1 Engine 2 | . . . 1 . 1 Core . | . . . . . . Reactor . | . . . . . . Propulsion 14 | . 2 5 1 2 4 Treads . | . . . . . . Leg 5 | . . 2 . . 3 Wheel . | . . . . . . Hover . | . . . . . . Flight 9 | . 2 3 1 2 1 Utility 4 | 1 . 1 . . 2 Device 3 | . . 1 . . 2 Storage 1 | 1 . . . . . Processor . | . . . . . . Hackware . | . . . . . . Protection . | . . . . . . Artifact . | . . . . . . Weapon 8 | . . 2 . 1 5 Energy Gun 1 | . . 1 . . . Energy Cannon . | . . . . . . Ballistic Gun 4 | . . 1 . 1 2 Ballistic Cannon . | . . . . . . Launcher 2 | . . . . . 2 Special Weapon . | . . . . . . Impact Weapon . | . . . . . . Slashing Weapon 1 | . . . . . 1 Piercing Weapon . | . . . . . . Special Melee Weapon . | . . . . . . Unidentified Prototypes 2 | . . . . . 2 Parts Lost 11 | . . . . 2 9 Power 2 | . . . . . 2 Propulsion 6 | . . . . 2 4 Utility . | . . . . . . Weapon 3 | . . . . . 3 Highest Loss Streak 4 | . . . . 2 4 Average Slot Usage (%) 78 | . 96 69 77 80 76 Engine 15 | . 14 14 22 22 14 Leg 7 | . 26 2 . . 7 Flight 21 | . 2 25 33 33 22 Device 9 | . . 10 11 11 12 Storage 13 | . 27 14 11 11 9 Energy Gun 2 | . 13 1 . . . Ballistic Gun 4 | . 13 1 . 3 4 Slashing Weapon 1 | . . . . . 4 Naked Turns . | . . . . . . Heaviest Build 18 | 14 14 11 11 12 18 Greatest Support 26 | 20 20 20 12 12 26 Greatest Overweight (x) . | . . . . . . Average Overweight (x) . | . . . . . . Largest Inventory Capacity 8 | 8 8 6 6 6 6 Average Capacity 6 | 6 7 6 6 6 6 Most Carried 8 | 8 8 6 5 4 6 Average Carried 5 | 6 7 5 4 3 4 Final Capacity 8 | 8 6 6 6 6 6 Final Carried 8 | 8 6 6 4 2 4 Class Distribution -------------------- 96% | Mutant 3% | Scavenger-Mutant Dominant Class ---------------- Mutant | -10/Materials Mutant | -10/Mines Mutant | -9/Materials Mutant | -9/Mines Mutant | -8/Materials Resources | -11 -10 -10 -9 -9 -8 ----------- Run | Scr Mat Min Mat Min Mat Matter Collected 540 | 210 . 65 . 100 165 Remotely . | . . . . . . Salvage Created 675 | 99 . 50 . 33 493 Parts 46 | 6 . 9 . . 31 Haulers Intercepted . | . . . . . . Recyclers Shooed . | . . . . . . Parts Field Recycled . | . . . . . . Retrieved Matter . | . . . . . . Parts Self-Destructed . | . . . . . . Prevented . | . . . . . . Kills | -11 -10 -10 -9 -9 -8 ------- Run | Scr Mat Min Mat Min Mat Combat Hostiles Destroyed 10 | . . 3 . 3 4 Melee 2 | . . . . . 2 Guns 6 | . . 3 . 3 . AOE 2 | . . . . . 2 Classes Destroyed 10 | 2 . 1 . 1 6 Worker 3 | . . . . . 3 Builder 1 | . . . . . 1 Tunneler 1 | 1 . . . . . Recycler 4 | 1 . . . . 3 Operator 1 | . . . . . 1 Watcher 1 | . . . . . 1 Swarmer 3 | . . 3 . . . Grunt 3 | . . . . . 3 Brawler 1 | . . . . . 1 Assembled 3 | . . . . 3 . Best Kill Streak 5 | 2 . 3 . 2 5 Combat Bots Only 3 | . . 3 . 2 2 Max Kills in Single Turn 3 | 1 . 1 . 1 3 Gunslinging . | . . . . . . Exploded 1 | . . . . . 1 Melee 1 | . . . . . 1 Uniques/NPCs Destroyed . | . . . . . . Combat | -11 -10 -10 -9 -9 -8 -------- Run | Scr Mat Min Mat Min Mat Damage Taken 1188 | . . 85 . 163 940 Core 209 | . . 24 . 41 144 Absorbed by Shields . | . . . . . . Core Remaining (%) 93 | 100 . 90 . 89 . Volleys Fired 36 | 5 2 6 . 15 8 Largest 2 | 1 1 2 . 1 2 Hottest 60 | 40 40 60 . 20 53 Shots Fired 46 | 5 2 12 . 15 12 Gun 40 | 5 2 12 . 15 6 Cannon . | . . . . . . Launcher 6 | . . . . . 6 Special . | . . . . . . Kinetic 27 | . . 6 . 15 6 Thermal . | . . . . . . Explosive 4 | . . . . . 4 Electromagnetic 15 | 5 2 6 . . 2 Robot Hit Streak 5 | 2 . 4 . 5 5 Robot Miss Streak 3 | 1 2 3 . 2 2 Penetration Max . | . . . . . . Secondary Targets 2 | . . 2 . . . Max Gunslinging Chain 1 | . . 1 . . . Shots Hit Robots 36 | 4 . 7 . 8 17 Core Hits 34 | 3 . 4 . 6 21 Critical Hits 1 | . . . . . 1 Critical Kills 1 | . . . . . 1 Critical Parts Destroyed . | . . . . . . Melee Attacks 17 | . . . . . 17 Impact . | . . . . . . Slashing 17 | . . . . . 17 Piercing . | . . . . . . Sneak Attacks 4 | . . . . . 4 Combat Hostiles . | . . . . . . Follow-up Attacks . | . . . . . . Damage Inflicted 1494 | 51 . 65 . 72 1306 Guns 232 | 51 . 65 . 72 44 Cannons . | . . . . . . Explosions 569 | . . . . . 569 Melee 693 | . . . . . 693 Ramming . | . . . . . . Kinetic 138 | . . 22 . 72 44 Thermal . | . . . . . . Explosive 450 | . . . . . 450 Electromagnetic 213 | 51 . 43 . . 119 Impact . | . . . . . . Slashing 693 | . . . . . 693 Piercing . | . . . . . . Highest Corruption . | . . . . . . Average Corruption . | . . . . . . Corruption Purged . | . . . . . . Overload Shots . | . . . . . . Overflow Damage 154 | . . . . . 154 Projectiles . | . . . . . . Explosions 5 | . . . . . 5 Melee 149 | . . . . . 149 Knockbacks . | . . . . . . Impact . | . . . . . . Kinetic . | . . . . . . Secondary . | . . . . . . Self-Inflicted Damage . | . . . . . . Shots . | . . . . . . Rammed . | . . . . . . Targets Rammed . | . . . . . . Kicked . | . . . . . . Crushed . | . . . . . . Highest Temperature 43 | . . 40 . 43 36 Average Temperature 18 | . . 26 . 14 15 Received Heat Transfer 503 | . . 9 . 80 414 Siege Activations . | . . . . . . Robots Corrupted . | . . . . . . Combat Hostiles . | . . . . . . Parts Fried . | . . . . . . Impact Corruptions . | . . . . . . Robots Melted . | . . . . . . Combat Hostiles . | . . . . . . Parts Melted . | . . . . . . Heat Transferred . | . . . . . . Parts Sabotaged . | . . . . . . Parts Stolen . | . . . . . . Parts Stripped . | . . . . . . Power Chain Reactions . | . . . . . . Missiles Intercepted . | . . . . . . Alert | -11 -10 -10 -9 -9 -8 ------- Run | Scr Mat Min Mat Min Mat Peak Influence 266 | 10 34 113 43 87 266 Initial 43 | . 6 13 43 16 24 Average 69 | 8 16 77 43 45 119 Maximum Alert Level 1 | . . . . . 1 Low Security (%) 96 | 100 100 100 100 100 89 Level 1 3 | . . . . . 10 Level 2 . | . . . . . . Level 3 . | . . . . . . Level 4 . | . . . . . . Level 5 . | . . . . . . High Security . | . . . . . . Max Security . | . . . . . . Squads Dispatched 2 | . . . . . 2 Investigation . | . . . . . . Extermination . | . . . . . . Reinforcement 2 | . . . . . 2 Assault . | . . . . . . Garrison . | . . . . . . Intercept . | . . . . . . Construction Impeded . | . . . . . . Haulers Reinforced . | . . . . . . Stealth | -11 -10 -10 -9 -9 -8 --------- Run | Scr Mat Min Mat Min Mat Distress Signals 2 | . 1 . . . 1 Communications Jammed . | . . . . . . Distress Signals . | . . . . . . Times Spotted 40 | . 3 5 . 13 19 Peak Tracking Total 19 | . 3 3 . 19 12 Tactical Retreats 6 | . . 1 . 1 4 Traps | -11 -10 -10 -9 -9 -8 ------- Run | Scr Mat Min Mat Min Mat Traps Triggered . | . . . . . . Indirectly . | . . . . . . Trap Hack Attempts . | . . . . . . Triggered . | . . . . . . Disarmed . | . . . . . . Reprogrammed . | . . . . . . Reused . | . . . . . . Traps Extracted . | . . . . . . Installed . | . . . . . . Triggered . | . . . . . . Machines | -11 -10 -10 -9 -9 -8 ---------- Run | Scr Mat Min Mat Min Mat Machines Disabled 1 | . . . . . 1 Max in Single Turn 1 | . . . . . 1 Machines Sabotaged . | . . . . . . Garrisons Compromised . | . . . . . . Overloaded Fab Kills . | . . . . . . Fab Network Shutdowns . | . . . . . . Hacking | -11 -10 -10 -9 -9 -8 --------- Run | Scr Mat Min Mat Min Mat Machines Accessed 5 | . 2 1 1 . 1 Terminals 4 | . 2 1 . . 1 Fabricators . | . . . . . . Repair Stations . | . . . . . . Recycling Units 1 | . . . 1 . . Scanalyzers . | . . . . . . Garrison Access . | . . . . . . Total Hacks 10 | . 6 1 1 . 2 Successful 6 | . 3 1 1 . 1 Failed 4 | . 3 . . . 1 Catastrophic 1 | . 1 . . . . Database Lockouts . | . . . . . . Manual . | . . . . . . Terminals 9 | . 6 1 . . 2 Fabricators . | . . . . . . Repair Stations . | . . . . . . Recycling Units 1 | . . . 1 . . Scanalyzers . | . . . . . . Garrison Access . | . . . . . . Terminal Hacks 5 | . 3 1 . . 1 Record 2 | . . 1 . . 1 Level Access Points 1 | . 1 . . . . Terminal Index 1 | . 1 . . . . Hauler Manifests 1 | . 1 . . . . Fabricator Hacks . | . . . . . . Repair Station Hacks . | . . . . . . Recycling Unit Hacks 1 | . . . 1 . . Report Inventory 1 | . . . 1 . . Scanalyzer . | . . . . . . Garrison Access Hacks . | . . . . . . Unauthorized Hacks . | . . . . . . Terminals . | . . . . . . Fabricators . | . . . . . . Repair Stations . | . . . . . . Recycling Units . | . . . . . . Scanalyzers . | . . . . . . Garrison Access . | . . . . . . Data Cores Recovered . | . . . . . . Used . | . . . . . . Hacking Detections 3 | . 2 . . . 1 Full Trace Events . | . . . . . . Feedback Events . | . . . . . . Feedback Blocked . | . . . . . . Robot Schematics Acquired . | . . . . . . Robots Built . | . . . . . . Matter . | . . . . . . Time . | . . . . . . Total Robot Build Rating . | . . . . . . Part Schematics Acquired . | . . . . . . Parts Built . | . . . . . . Matter . | . . . . . . Time . | . . . . . . Total Part Build Rating . | . . . . . . Parts Repaired . | . . . . . . Time . | . . . . . . Parts Recycled . | . . . . . . Recycled Matter . | . . . . . . Retrieved Matter . | . . . . . . Retrieved Components . | . . . . . . Parts Scanalyzed . | . . . . . . Part Schematics Acquired . | . . . . . . Parts Damaged . | . . . . . . Bothacking | -11 -10 -10 -9 -9 -8 ------------ Run | Scr Mat Min Mat Min Mat Used RIF Installer . | . . . . . . Robots Hacked . | . . . . . . Non-combat . | . . . . . . Combat . | . . . . . . Robot Hacks Applied . | . . . . . . Relay Couplers Released . | . . . . . . Robots Rewired . | . . . . . . Allies Hacked . | . . . . . . Hacks Repelled . | . . . . . . Allies | -11 -10 -10 -9 -9 -8 -------- Run | Scr Mat Min Mat Min Mat Total Allies 2 | . . . . 2 . Largest Group 2 | . . . . 2 . Highest-Rated Group 48 | . . . . 48 . Highest-Rated Ally 31 | . . . . 31 . Total Orders . | . . . . . . Ally Attacks 19 | . . . . 19 . Total Damage 318 | . . . . 318 . Kills 5 | . . . . 5 . Allies Corrupted . | . . . . . . Allies Melted . | . . . . . . Intel | -11 -10 -10 -9 -9 -8 ------- Run | Scr Mat Min Mat Min Mat Robot Analysis Total . | . . . . . . Derelict Logs Recovered 3 | . . 2 . 1 . Drone Launches . | . . . . . . Drone Recoveries . | . . . . . . Exploration | -11 -10 -10 -9 -9 -8 ------------- Run | Scr Mat Min Mat Min Mat Turns Passed 869 | 40 146 236 20 166 261 Spaces Moved 1248 | 23 125 463 53 303 281 Core . | . . . . . . Treads . | . . . . . . Legs 125 | 23 99 1 . . 2 Wheels . | . . . . . . Hover . | . . . . . . Flight 1123 | . 26 462 53 303 279 Fastest Speed 32 | 120 37 37 34 34 32 Average Speed 45 | 120 102 37 34 34 41 Slowest Speed 130 | 120 120 120 34 34 130 Overloaded Moves . | . . . . . . Propulsion Burnouts . | . . . . . . Robots Hopped 4 | . . 3 . . 1 Cave-ins Triggered . | . . . . . . Exploration Rate (%) 34 | 3 25 99 17 37 28 Regions Visited 5 Branch Regions 2 Pre-discovered Areas . | . . . . . . Known Exits Taken 3 | . . 1 1 1 . Unknown Exits Taken 2 | 1 1 . . . . Scrap Searched 2 | . . 1 . 1 . Spaces Dug . | . . . . . . Terrain Destroyed 26 | . . . . . 26 Melee . | . . . . . . Projectile . | . . . . . . AOE 26 | . . . . . 26 Terrain Rammed . | . . . . . . Walls Destroyed . | . . . . . . Machines Disabled . | . . . . . . Actions | -11 -10 -10 -9 -9 -8 --------- Run | Scr Mat Min Mat Min Mat Total 1484 | 30 143 513 54 353 391 Wait 117 | . 2 29 . 32 54 Move 1236 | 22 124 457 52 302 279 Hop 3 | . . 2 . . 1 Pick Up 21 | 2 3 4 . 1 11 Fast Attach 4 | 1 . 1 . . 2 Attach 18 | . . 2 2 3 11 Detach 8 | . 2 2 . . 4 Swap 7 | . 2 5 . . . Drop 17 | . 8 5 . . 4 Fire 36 | 5 2 6 . 15 8 Melee 17 | . . . . . 17 Ram . | . . . . . . Kick . | . . . . . . Crush . | . . . . . . Escape Stasis . | . . . . . . Rewire . | . . . . . . Trap . | . . . . . . Miscellaneous . | . . . . . . Route ------- -11/Scrapyard -10/Materials (discovered 4 exits: Mat x3 / *Min) -10/Mines (discovered 2 exits: *Mat x2) -9/Materials (discovered 3 exits: Mat / *Min x2) -9/Mines -8/Materials History --------- Turn | Location | Event 12 | -11/Scrapyard | Discovered new exit (range 3) 41 | -11/Scrapyard | Entered Materials 68 | -10/Materials | Identified exit to Materials 184 | -10/Materials | Discovered new exit (range 7) 187 | -10/Materials | Entered Mines 240 | -10/Mines | Learned location of 1 exit from Materials 309 | -10/Mines | Discovered exit to Materials (range 9) 336 | -10/Mines | Build established: Mutant 360 | -10/Mines | Received a Rocket Launcher from a helpful Derelict 419 | -10/Mines | Discovered exit to Materials (range 11) 423 | -10/Mines | Entered Materials 423 | -9/Materials | Evolved 2 slots: Power x1, Propulsion x1 424 | -9/Materials | Identified exit to Mines 425 | -9/Materials | Identified exit to Materials 443 | -9/Materials | Entered Mines 448 | -9/Mines | Learned Materials interactive machine intel 465 | -9/Mines | Assembled infested the area 580 | -9/Mines | Discovered exit to Materials (range 10) 609 | -9/Mines | Entered Materials 609 | -8/Materials | Evolved 2 slots: Propulsion x1, Utility x1 610 | -8/Materials | Loaded intel: 19 interactive machine locations 870 | -8/Materials | Self-destructed Last Messages --------------- 00819_ ALERT: Hostiles spotted, dispatching reinforcements to Terminal M001. 00823_ Acquired Prototype Flight Unit. 00835_ K-01 Serf cleans the Electrolysis Chamber. 00836_ Dropped Rocket Launcher. 00836_ Acquired Shock Bomb Launcher. 00838_ K-01 Serf cleans the Electrolysis Chamber. 00842_ Electrolysis Chamber disabled. 00844_ Door malfunctions. 00844_ W-25 Informer destroyed. 00844_ K-01 Serf destroyed. 00849_ Flight Unit destroyed. 00855_ G-47 Trooper destroyed. 00857_ Acquired 35 matter. 00858_ Lgt. Ion Engine destroyed. 00863_ G-47 Trooper suffers critical hit. 00863_ G-47 Trooper destroyed. 00864_ Imp. Titanium Leg destroyed. 00864_ Y-45 Defender IFF system glitched. 00866_ Shock Bomb Launcher destroyed. Map ----- +----------------------------------------------------+ | ????????????????? ????????????????????????? | | ########????????? ????????????????????????? | | # """ #????????? ????????????????????????? | | # """ #?????????# #????????????????????????? | | # """ #??????? ?# #????????????????????????? | | # #? ???????# #???####?????????????????? | | # #?????????# #?? ??????????????????? | | ?? ?????????## ## ????????????????????? | | ####/############ # ""????????????????????? | | =%*!% =*T=+ "T????????????????????? | | #################==*#?""????????????????????? | | ?????????#########%##???????????????????????? | | ??#??????# = #/#???#######??????????????? | | ?????????# +%#???# ########???????? | | ?????????# # ##### #???????? | | ?????????######### #???????? | | ??????????????####+##+## #???????? | | ???????????????# # #### #???????? | | ???? ??????????# ### ###??????????????? | | ????????""?????# #?# #????????????????? | | ????????"""????# #?# #????????????????? | | ?????????S"????# #?# #????????????????? | | ???????????????########### #????????????????? | | ??????????#???????# g !!#=#????????????????? | | ??????????????????# g%%#Y#????????????????? | | ??????????????????# =g!@%#????????????????? | | ??????????????????# [Y=###????????????????? | | ??????????????????# =]#??????????????????? | | ??????????? ??????# = !#??????????????????? | | ???????"T"????????########??????????????????? | | ????????????????????????????????????????????? | | ????????????????????????????????????????????? | | ????????????????????????????????????????????? | | ????????????????????????????????????????????? | | ????????????????????????????????????????????? | | ????????????????????????????????????????????? | | ?????????????????????????????""T""??????????? | | ?????????????????????????????"""""??????????? | | ????????????????????????????????????????????? | | ????????????????????????????????????????????? | | ????????????????????????????????????????????? | | ????????????????????????????????????????????? | | ????????????????????????????????????????????? | | ????????????????????????????????????????????? | | ????????????????????????????????????????????? | | ????????????????????????????????????????????? | | ????????????????????????????????????????????? | | ????????????????????????????????????????????? | | ????????????????????????????????????????????? | | ????????????????????????????????????????????? | +----------------------------------------------------+ Best States ------------- Heat Dissipation 31 Energy Generation 19 Energy Capacity 165 Matter Stores 300 Matter Capacity 300 Sight Range 16 Terrain Scan Range 24 Terrain Scan Density 10 ECM Strength 1 Additional Mass Support 6 Evasion (%) 63 Item Schematics ----------------- None Robot Schematics ------------------ None Fabricated ------------ Nothing Alien Tech Used ----------------- None Achievements -------------- Slippery One Challenges ------------ None Game ------ Seed ForceMasterInverter Manual? 0 Play Time 00:26:22 Cumulative 13.4 hours Start 2021.03.16 @ 12:42:55 End 2021.03.16 @ 13:10:45 Sessions 1 Manual Loads 0 Difficulty Rogue Special Mode None Game No. 32 Rogue 32 Adventurer 0 Explorer 0 Win Type - Total 0 Types 0/0/0/0/0/0/0/0/0 Lore% 20 Gallery% 19 Achievement% 18 Wizard Run 0 Options --------- ASCII 0 Keyboard 0 Movement Numpad Keybinds 0 Fullscreen 2 Font 24/Terminus Map View 76x50 Tactical HUD 1 Map Filters NONE Filters NONE Steam 1 RUN: 83a41612-645c-4d3c-8bd6-035d7c7ecc0c